[Event "*** Titled Tuesday Blitz"]
[Site "Chess.com"]
[Date "2020.10.27"]
[Round "6"]
[White "Inga83"]
[Black "Quiet_Desperation"]
[Result "1/2-1/2"]
[WhiteElo "2394"]
[BlackElo "2029"]
[TimeControl "180+1"]
[EndTime "11:08:17 PDT"]
[Termination "Game drawn - insufficient material"]

1. d4 {[%clk 0:02:58.5]} 1... Nf6 {[%clk 0:02:58.2]} 2. c4 {[%clk 0:02:55.1]}
2... e6 {[%clk 0:02:57.8]} 3. g3 {[%clk 0:02:54.1]} 3... Bb4+ {[%clk 0:02:56.6]}
4. Bd2 {[%clk 0:02:53.4]} 4... Qe7 {[%clk 0:02:49.8]} 5. Bg2 {[%clk 0:02:52.9]}
5... Nc6 {[%clk 0:02:49.3]} 6. Nf3 {[%clk 0:02:52.1]} 6... Bxd2+ {[%clk
0:02:48.2]} 7. Nbxd2 {[%clk 0:02:51.5]} 7... d6 {[%clk 0:02:48.1]} 8. O-O {[%clk
0:02:47.7]} 8... O-O {[%clk 0:02:48.2]} 9. e4 {[%clk 0:02:44.9]} 9... e5 {[%clk
0:02:46.9]} 10. d5 {[%clk 0:02:44.4]} 10... Nb8 {[%clk 0:02:47.1]} 11. b4 {[%clk
0:02:40]} 11... c6 {[%clk 0:02:35.4]} 12. Qe2 {[%clk 0:02:36.7]} 12... cxd5
{[%clk 0:02:34.6]} 13. cxd5 {[%clk 0:02:36.1]} 13... a5 {[%clk 0:02:32.9]} 14.
a3 {[%clk 0:02:34.7]} 14... Na6 {[%clk 0:02:30]} 15. Rab1 {[%clk 0:02:30.3]}
15... Bd7 {[%clk 0:02:26.6]} 16. Rfc1 {[%clk 0:02:29]} 16... Rfc8 {[%clk
0:02:18.4]} 17. Nc4 {[%clk 0:02:23.8]} 17... Bb5 {[%clk 0:02:14.6]} 18. Nfd2
{[%clk 0:02:23.2]} 18... axb4 {[%clk 0:02:11.4]} 19. axb4 {[%clk 0:02:22.4]}
19... Rc7 {[%clk 0:01:52.9]} 20. Bh3 {[%clk 0:02:15.9]} 20... Nd7 {[%clk
0:01:40.1]} 21. Qd1 {[%clk 0:01:56.8]} 21... Rac8 {[%clk 0:01:33.3]} 22. Na3
{[%clk 0:01:47.1]} 22... Rxc1 {[%clk 0:01:28.1]} 23. Rxc1 {[%clk 0:01:46.5]}
23... Rxc1 {[%clk 0:01:26.9]} 24. Qxc1 {[%clk 0:01:46.5]} 24... Be2 {[%clk
0:01:14.7]} 25. Qc8+ {[%clk 0:01:38.7]} 25... Nf8 {[%clk 0:01:14.5]} 26. Qc3
{[%clk 0:01:24.9]} 26... Qc7 {[%clk 0:01:10.7]} 27. Qxc7 {[%clk 0:01:18.3]}
27... Nxc7 {[%clk 0:01:11.6]} 28. f4 {[%clk 0:01:17]} 28... f6 {[%clk
0:00:57.8]} 29. Kf2 {[%clk 0:01:16.4]} 29... Ba6 {[%clk 0:00:44.1]} 30. Bc8
{[%clk 0:01:12.1]} 30... Kf7 {[%clk 0:00:40.4]} 31. Ke3 {[%clk 0:01:10.9]} 31...
Ke7 {[%clk 0:00:40.6]} 32. Nb3 {[%clk 0:01:05.4]} 32... Kd8 {[%clk 0:00:40.5]}
33. Bf5 {[%clk 0:01:03.1]} 33... g6 {[%clk 0:00:38.8]} 34. Bh3 {[%clk 0:01:03]}
34... Nb5 {[%clk 0:00:32]} 35. Nc4 {[%clk 0:00:57.4]} 35... Kc7 {[%clk
0:00:31.6]} 36. Nca5 {[%clk 0:00:50.9]} 36... Nc3 {[%clk 0:00:26]} 37. Bg2
{[%clk 0:00:46.8]} 37... Nd1+ {[%clk 0:00:23.7]} 38. Kd2 {[%clk 0:00:45.7]}
38... Nf2 {[%clk 0:00:21.3]} 39. Ke1 {[%clk 0:00:41.3]} 39... Nd3+ {[%clk
0:00:20]} 40. Kd2 {[%clk 0:00:41.6]} 40... Nxb4 {[%clk 0:00:20.9]} 41. Kc3
{[%clk 0:00:41.5]} 41... Nd3 {[%clk 0:00:18.8]} 42. Bf1 {[%clk 0:00:39.8]} 42...
Nc5 {[%clk 0:00:14.8]} 43. Bxa6 {[%clk 0:00:38.4]} 43... Nxa6 {[%clk 0:00:13.2]}
44. Kc4 {[%clk 0:00:37.4]} 44... Nd7 {[%clk 0:00:13.2]} 45. Kb5 {[%clk
0:00:36.6]} 45... Ndc5 {[%clk 0:00:09.1]} 46. Nd2 {[%clk 0:00:35.7]} 46... f5
{[%clk 0:00:07.2]} 47. fxe5 {[%clk 0:00:35.1]} 47... dxe5 {[%clk 0:00:06.6]} 48.
Nac4 {[%clk 0:00:33]} 48... Nxe4 {[%clk 0:00:06.1]} 49. Nxe4 {[%clk 0:00:31.4]}
49... fxe4 {[%clk 0:00:05.9]} 50. Nxe5 {[%clk 0:00:31.6]} 50... e3 {[%clk
0:00:06.3]} 51. Nf3 {[%clk 0:00:29.6]} 51... Kd6 {[%clk 0:00:06.3]} 52. Kc4
{[%clk 0:00:29.4]} 52... Nc7 {[%clk 0:00:06.6]} 53. Kd3 {[%clk 0:00:27.8]} 53...
Nxd5 {[%clk 0:00:06.8]} 54. Ng5 {[%clk 0:00:27.8]} 54... b5 {[%clk 0:00:06.5]}
55. Nxh7 {[%clk 0:00:27.4]} 55... b4 {[%clk 0:00:06.6]} 56. Ng5 {[%clk
0:00:27.5]} 56... b3 {[%clk 0:00:07.1]} 57. Nf3 {[%clk 0:00:27.1]} 57... b2
{[%clk 0:00:07]} 58. Kc2 {[%clk 0:00:27.3]} 58... e2 {[%clk 0:00:07.6]} 59. Kxb2
{[%clk 0:00:27.1]} 59... Ne3 {[%clk 0:00:07.8]} 60. Kc1 {[%clk 0:00:26.5]} 60...
Nf1 {[%clk 0:00:08.2]} 61. h4 {[%clk 0:00:23.8]} 61... Nxg3 {[%clk 0:00:08]} 62.
Kd2 {[%clk 0:00:23.1]} 62... Kd5 {[%clk 0:00:08.5]} 63. Ke1 {[%clk 0:00:22.3]}
63... Ke4 {[%clk 0:00:08.7]} 64. Kf2 {[%clk 0:00:22.5]} 64... Kf4 {[%clk
0:00:07.4]} 65. Nd4 {[%clk 0:00:20.8]} 65... Kg4 {[%clk 0:00:06.7]} 66. Nf3
{[%clk 0:00:18.6]} 66... Ne4+ {[%clk 0:00:05.7]} 67. Kxe2 {[%clk 0:00:17.8]}
67... Nf6 {[%clk 0:00:06.4]} 68. Kf2 {[%clk 0:00:16.8]} 68... Nh5 {[%clk
0:00:06.5]} 69. Kg2 {[%clk 0:00:15.8]} 69... Ng7 {[%clk 0:00:07]} 70. Ne5+
{[%clk 0:00:14.8]} 70... Kxh4 {[%clk 0:00:06.2]} 71. Nxg6+ {[%clk 0:00:14.8]}
1/2-1/2

[Event "*** Titled Tuesday Blitz"]
[Site "Chess.com"]
[Date "2020.10.27"]
[Round "6"]
[White "vugarrasulov"]
[Black "Oneofmyturns"]
[Result "1-0"]
[WhiteElo "2867"]
[BlackElo "2730"]
[TimeControl "180+1"]
[EndTime "11:08:19 PDT"]
[Termination "vugarrasulov won by resignation"]

1. d4 {[%clk 0:03:00.9]} 1... d5 {[%clk 0:02:59.3]} 2. c4 {[%clk 0:03:00.7]}
2... e6 {[%clk 0:02:59.2]} 3. Nf3 {[%clk 0:03:00.7]} 3... Nf6 {[%clk 0:02:59.5]}
4. Bg5 {[%clk 0:03:00.1]} 4... Be7 {[%clk 0:02:58.6]} 5. Nc3 {[%clk 0:02:59.7]}
5... h6 {[%clk 0:02:58.3]} 6. Bf4 {[%clk 0:02:58.4]} 6... O-O {[%clk 0:02:55]}
7. e3 {[%clk 0:02:58.6]} 7... c5 {[%clk 0:02:51.6]} 8. dxc5 {[%clk 0:02:52.8]}
8... Bxc5 {[%clk 0:02:50]} 9. a3 {[%clk 0:02:53.2]} 9... Nc6 {[%clk 0:02:49.5]}
10. b4 {[%clk 0:02:49.9]} 10... Bd6 {[%clk 0:02:40.7]} 11. Bxd6 {[%clk
0:02:47.7]} 11... Qxd6 {[%clk 0:02:40.5]} 12. Be2 {[%clk 0:02:45.2]} 12... Rd8
{[%clk 0:02:27.5]} 13. O-O {[%clk 0:02:44.4]} 13... dxc4 {[%clk 0:01:48.7]} 14.
Bxc4 {[%clk 0:02:38.1]} 14... Qe7 {[%clk 0:01:48.8]} 15. Qb3 {[%clk 0:02:35.7]}
15... Bd7 {[%clk 0:01:48.5]} 16. Rfd1 {[%clk 0:02:31.5]} 16... Be8 {[%clk
0:01:39.2]} 17. h3 {[%clk 0:02:32]} 17... Rac8 {[%clk 0:01:32.7]} 18. Rxd8
{[%clk 0:02:28.8]} 18... Rxd8 {[%clk 0:01:31.5]} 19. Rc1 {[%clk 0:02:29.2]}
19... a6 {[%clk 0:01:23.1]} 20. Ne2 {[%clk 0:02:21.1]} 20... Qd6 {[%clk
0:01:14]} 21. Ned4 {[%clk 0:02:12.9]} 21... Nxd4 {[%clk 0:01:10.5]} 22. Nxd4
{[%clk 0:02:13.8]} 22... Bc6 {[%clk 0:01:07.7]} 23. Bf1 {[%clk 0:01:49.5]} 23...
Bd5 {[%clk 0:01:06.9]} 24. Qc2 {[%clk 0:01:49.6]} 24... a5 {[%clk 0:01:02.5]}
25. Nb5 {[%clk 0:01:44.9]} 25... Qb6 {[%clk 0:00:47.6]} 26. Qc5 {[%clk
0:01:43.2]} 26... Qxc5 {[%clk 0:00:45.9]} 27. bxc5 {[%clk 0:01:44.1]} 27... Rc8
{[%clk 0:00:44.8]} 28. Nd6 {[%clk 0:01:34.7]} 28... Rc7 {[%clk 0:00:44.6]} 29.
Bb5 {[%clk 0:01:33.8]} 29... Bc6 {[%clk 0:00:42.2]} 30. Bxc6 {[%clk 0:01:25.2]}
30... Rxc6 {[%clk 0:00:43.1]} 31. Nxb7 {[%clk 0:01:24.3]} 31... Nd7 {[%clk
0:00:43.4]} 32. Nxa5 {[%clk 0:01:21.6]} 32... Rxc5 {[%clk 0:00:30]} 33. Rxc5
{[%clk 0:01:22.5]} 33... Nxc5 {[%clk 0:00:30.9]} 34. Kf1 {[%clk 0:01:19.7]}
34... Kf8 {[%clk 0:00:31.4]} 35. Nc6 {[%clk 0:01:19.1]} 35... Ke8 {[%clk
0:00:31]} 36. Ke2 {[%clk 0:01:19.3]} 36... f6 {[%clk 0:00:30.2]} 37. f3 {[%clk
0:01:14.7]} 37... Kd7 {[%clk 0:00:30.5]} 38. Nd4 {[%clk 0:01:14.8]} 38... g6
{[%clk 0:00:30.7]} 39. e4 {[%clk 0:01:13.3]} 39... e5 {[%clk 0:00:31]} 40. Nb5
{[%clk 0:01:09.7]} 40... Kc6 {[%clk 0:00:30.5]} 41. Nc3 {[%clk 0:01:09.8]} 41...
f5 {[%clk 0:00:30.5]} 42. g4 {[%clk 0:01:04.4]} 42... Ne6 {[%clk 0:00:16.9]} 43.
exf5 {[%clk 0:00:50]} 43... gxf5 {[%clk 0:00:17.8]} 44. Ke3 {[%clk 0:00:50.2]}
44... Nd4 {[%clk 0:00:09.7]} 45. h4 {[%clk 0:00:40.9]} 45... Kd6 {[%clk
0:00:07]} 46. a4 {[%clk 0:00:38.4]} 46... f4+ {[%clk 0:00:04.9]} 47. Ke4 {[%clk
0:00:37.6]} 47... Ke6 {[%clk 0:00:05.5]} 48. Nb5 {[%clk 0:00:24.5]} 48... Nb3
{[%clk 0:00:04.7]} 49. Nc7+ {[%clk 0:00:24.5]} 49... Kd6 {[%clk 0:00:04.6]} 50.
Ne8+ {[%clk 0:00:22.1]} 50... Ke6 {[%clk 0:00:04.8]} 51. Ng7+ {[%clk 0:00:15.2]}
51... Kf6 {[%clk 0:00:04.8]} 52. Nf5 {[%clk 0:00:12]} 52... Ke6 {[%clk
0:00:04.5]} 53. Kd3 {[%clk 0:00:10.6]} 53... h5 {[%clk 0:00:02.5]} 54. Ng7+
{[%clk 0:00:08.6]} 54... Kf6 {[%clk 0:00:03.1]} 55. Nxh5+ {[%clk 0:00:09.1]}
55... Ke6 {[%clk 0:00:04]} 56. Ng7+ {[%clk 0:00:08.5]} 56... Kd5 {[%clk
0:00:03.5]} 57. h5 {[%clk 0:00:07.5]} 57... Nc5+ {[%clk 0:00:04]} 58. Ke2 {[%clk
0:00:07.7]} 58... e4 {[%clk 0:00:03.5]} 59. h6 {[%clk 0:00:07.6]} 59... e3
{[%clk 0:00:03.4]} 60. h7 {[%clk 0:00:07.6]} 1-0

[Event "*** Titled Tuesday Blitz"]
[Site "Chess.com"]
[Date "2020.10.27"]
[Round "6"]
[White "GregShahade"]
[Black "enriquetejedor"]
[Result "1/2-1/2"]
[WhiteElo "2647"]
[BlackElo "2487"]
[TimeControl "180+1"]
[EndTime "11:08:20 PDT"]
[Termination "Game drawn by stalemate"]

1. e4 {[%clk 0:03:00.9]} 1... c5 {[%clk 0:02:48.7]} 2. Nf3 {[%clk 0:03:00.8]}
2... d6 {[%clk 0:02:47.1]} 3. d4 {[%clk 0:03:01]} 3... cxd4 {[%clk 0:02:48]} 4.
Nxd4 {[%clk 0:03:01.6]} 4... Nf6 {[%clk 0:02:48.1]} 5. Nc3 {[%clk 0:03:02.2]}
5... Nc6 {[%clk 0:02:41.5]} 6. f3 {[%clk 0:03:00.6]} 6... e5 {[%clk 0:02:33.2]}
7. Nb3 {[%clk 0:03:00.6]} 7... Be6 {[%clk 0:02:28.9]} 8. Be3 {[%clk 0:03:00.1]}
8... d5 {[%clk 0:02:24.8]} 9. exd5 {[%clk 0:03:01]} 9... Nxd5 {[%clk 0:02:21.1]}
10. Nxd5 {[%clk 0:03:01.5]} 10... Qxd5 {[%clk 0:02:18.5]} 11. Qxd5 {[%clk
0:03:01]} 11... Bxd5 {[%clk 0:02:19.4]} 12. O-O-O {[%clk 0:02:57.5]} 12... O-O-O
{[%clk 0:02:15.3]} 13. Bb5 {[%clk 0:02:57.9]} 13... a6 {[%clk 0:02:04.9]} 14.
Bxc6 {[%clk 0:02:57.4]} 14... Bxc6 {[%clk 0:02:02.2]} 15. Na5 {[%clk 0:02:57.8]}
15... Bd5 {[%clk 0:01:47.4]} 16. c4 {[%clk 0:02:32.1]} 16... Be6 {[%clk
0:01:38.8]} 17. Rxd8+ {[%clk 0:02:01.6]} 17... Kxd8 {[%clk 0:01:39.7]} 18. Nxb7+
{[%clk 0:02:01.9]} 18... Kc7 {[%clk 0:01:39.5]} 19. Na5 {[%clk 0:02:01.9]} 19...
Bb4 {[%clk 0:01:38.9]} 20. Bd2 {[%clk 0:01:48.5]} 20... Rb8 {[%clk 0:01:39.2]}
21. Bxb4 {[%clk 0:01:28.9]} 21... Rxb4 {[%clk 0:01:37.2]} 22. Re1 {[%clk
0:01:03.8]} 22... f6 {[%clk 0:00:54.7]} 23. a3 {[%clk 0:00:56.6]} 23... Ra4
{[%clk 0:00:42.4]} 24. b4 {[%clk 0:00:56.7]} 24... Rxa3 {[%clk 0:00:37.5]} 25.
Kb2 {[%clk 0:00:50.9]} 25... Rd3 {[%clk 0:00:36.7]} 26. Re2 {[%clk 0:00:51.2]}
26... g5 {[%clk 0:00:22.9]} 27. Kc2 {[%clk 0:00:46.2]} 27... Ra3 {[%clk
0:00:14.2]} 28. Kb2 {[%clk 0:00:45.9]} 28... Rd3 {[%clk 0:00:13.7]} 29. Rc2
{[%clk 0:00:41.3]} 29... h5 {[%clk 0:00:10.5]} 30. Nb3 {[%clk 0:00:41.6]} 30...
Bc8 {[%clk 0:00:08.1]} 31. Nc5 {[%clk 0:00:41.4]} 31... Rd4 {[%clk 0:00:08.2]}
32. Kc3 {[%clk 0:00:36.2]} 32... Kc6 {[%clk 0:00:05.1]} 33. Ra2 {[%clk
0:00:34.6]} 33... Kb6 {[%clk 0:00:05.6]} 34. Ne4 {[%clk 0:00:30.3]} 34... Be6
{[%clk 0:00:02.2]} 35. c5+ {[%clk 0:00:29.4]} 35... Kb7 {[%clk 0:00:02.5]} 36.
Rb2 {[%clk 0:00:24.9]} 36... g4 {[%clk 0:00:02.2]} 37. Nxf6 {[%clk 0:00:20.3]}
37... gxf3 {[%clk 0:00:02.3]} 38. gxf3 {[%clk 0:00:21.2]} 38... Rf4 {[%clk
0:00:02.6]} 39. Nxh5 {[%clk 0:00:16.4]} 39... Rxf3+ {[%clk 0:00:03]} 40. Kc2
{[%clk 0:00:16.9]} 40... Rh3 {[%clk 0:00:02.9]} 41. Ng3 {[%clk 0:00:15.7]} 41...
Rxh2+ {[%clk 0:00:02.6]} 42. Kc1 {[%clk 0:00:14.3]} 42... Rh3 {[%clk 0:00:03.5]}
43. Ne2 {[%clk 0:00:13.5]} 43... Rh1+ {[%clk 0:00:03.2]} 44. Kd2 {[%clk
0:00:13.8]} 44... Rh2 {[%clk 0:00:02.6]} 45. Ke3 {[%clk 0:00:12.9]} 45... Bc4
{[%clk 0:00:02.2]} 46. Rd2 {[%clk 0:00:12.5]} 46... Kc7 {[%clk 0:00:01.9]} 47.
Nc3 {[%clk 0:00:11.9]} 47... Rh3+ {[%clk 0:00:02.1]} 48. Ke4 {[%clk 0:00:12.2]}
48... Rxc3 {[%clk 0:00:02.3]} 49. Kxe5 {[%clk 0:00:12.7]} 49... Rb3 {[%clk
0:00:02.7]} 50. Rd6 {[%clk 0:00:09.6]} 50... Rxb4 {[%clk 0:00:02.3]} 51. Kd4
{[%clk 0:00:10.1]} 51... Bb5+ {[%clk 0:00:02.2]} 52. Kd5 {[%clk 0:00:10.5]}
52... Rh4 {[%clk 0:00:01.6]} 53. Rg6 {[%clk 0:00:10.1]} 53... Rh7 {[%clk
0:00:02.1]} 54. c6 {[%clk 0:00:09]} 54... Re7 {[%clk 0:00:02.3]} 55. Kc5 {[%clk
0:00:09.4]} 55... Re5+ {[%clk 0:00:02.5]} 56. Kd4 {[%clk 0:00:09.7]} 56... Rf5
{[%clk 0:00:02.4]} 57. Ke4 {[%clk 0:00:08.8]} 57... Rc5 {[%clk 0:00:02.5]} 58.
Kd4 {[%clk 0:00:09]} 58... Rxc6 {[%clk 0:00:02.8]} 59. Rxc6+ {[%clk 0:00:09.2]}
59... Kxc6 {[%clk 0:00:02.7]} 60. Kc3 {[%clk 0:00:09.8]} 60... Kc5 {[%clk
0:00:02.3]} 61. Kb2 {[%clk 0:00:10.5]} 61... Kb4 {[%clk 0:00:02.4]} 62. Ka1
{[%clk 0:00:11.4]} 62... Ka3 {[%clk 0:00:02.4]} 63. Kb1 {[%clk 0:00:12]} 63...
Bc4 {[%clk 0:00:02.2]} 64. Ka1 {[%clk 0:00:12.9]} 64... Be6 {[%clk 0:00:02.7]}
65. Kb1 {[%clk 0:00:13.6]} 65... Bf7 {[%clk 0:00:02.8]} 66. Ka1 {[%clk
0:00:14.5]} 66... Bg8 {[%clk 0:00:03]} 67. Kb1 {[%clk 0:00:15.4]} 67... Kb3
{[%clk 0:00:03.4]} 68. Ka1 {[%clk 0:00:16.3]} 68... Kc3 {[%clk 0:00:04.2]} 69.
Kb1 {[%clk 0:00:17.2]} 69... Bh7+ {[%clk 0:00:03.3]} 70. Ka1 {[%clk 0:00:18.1]}
70... Kc2 {[%clk 0:00:03.6]} 71. Ka2 {[%clk 0:00:18.6]} 71... Bg8+ {[%clk
0:00:04.5]} 72. Ka1 {[%clk 0:00:19.5]} 72... Bf7 {[%clk 0:00:05.4]} 1/2-1/2

[Event "*** Titled Tuesday Blitz"]
[Site "Chess.com"]
[Date "2020.10.27"]
[Round "6"]
[White "Anton_Demchenko"]
[Black "bascheyaro"]
[Result "0-1"]
[WhiteElo "2844"]
[BlackElo "2745"]
[TimeControl "180+1"]
[EndTime "11:08:22 PDT"]
[Termination "bascheyaro won by resignation"]

1. e4 {[%clk 0:03:00.9]} 1... e6 {[%clk 0:02:59.8]} 2. d4 {[%clk 0:02:59.7]}
2... d5 {[%clk 0:03:00]} 3. Nd2 {[%clk 0:03:00.4]} 3... c5 {[%clk 0:02:59.9]} 4.
exd5 {[%clk 0:03:00.2]} 4... exd5 {[%clk 0:03:00.8]} 5. Ngf3 {[%clk 0:02:59.8]}
5... Nc6 {[%clk 0:03:00.4]} 6. Bb5 {[%clk 0:02:59.5]} 6... c4 {[%clk 0:03:00.3]}
7. O-O {[%clk 0:02:54.4]} 7... Bd6 {[%clk 0:03:00.1]} 8. b3 {[%clk 0:02:38.6]}
8... cxb3 {[%clk 0:03:01]} 9. axb3 {[%clk 0:02:38.2]} 9... Ne7 {[%clk
0:03:01.6]} 10. c3 {[%clk 0:02:34.1]} 10... O-O {[%clk 0:03:01.4]} 11. Bd3
{[%clk 0:02:33.8]} 11... Bf5 {[%clk 0:03:01.5]} 12. Qc2 {[%clk 0:02:33.5]} 12...
Qd7 {[%clk 0:03:01.5]} 13. Bxf5 {[%clk 0:02:28.9]} 13... Nxf5 {[%clk 0:02:59.7]}
14. Qd3 {[%clk 0:02:27.6]} 14... a6 {[%clk 0:02:58.3]} 15. Re1 {[%clk
0:02:27.2]} 15... Rae8 {[%clk 0:02:58.1]} 16. Bb2 {[%clk 0:02:25.6]} 16... Bf4
{[%clk 0:02:46.9]} 17. Nf1 {[%clk 0:02:24.4]} 17... f6 {[%clk 0:02:43.7]} 18. g3
{[%clk 0:02:22.7]} 18... Bb8 {[%clk 0:02:39.2]} 19. Ba3 {[%clk 0:02:21.5]} 19...
Bd6 {[%clk 0:02:36.5]} 20. Bb2 {[%clk 0:02:07.1]} 20... g6 {[%clk 0:02:30.3]}
21. Ne3 {[%clk 0:01:52]} 21... Nxe3 {[%clk 0:02:29.5]} 22. Rxe3 {[%clk
0:01:52.9]} 22... Rxe3 {[%clk 0:02:29.7]} 23. Qxe3 {[%clk 0:01:53.8]} 23... Re8
{[%clk 0:02:29.9]} 24. Qd3 {[%clk 0:01:53.8]} 24... Kf7 {[%clk 0:02:19]} 25. Kg2
{[%clk 0:01:52.8]} 25... Qg4 {[%clk 0:02:07.8]} 26. Qd2 {[%clk 0:01:07.8]} 26...
g5 {[%clk 0:01:48.1]} 27. c4 {[%clk 0:00:38.8]} 27... Bb4 {[%clk 0:01:45.1]} 28.
Qc2 {[%clk 0:00:35.5]} 28... Qe4 {[%clk 0:01:44.5]} 29. Rc1 {[%clk 0:00:34.3]}
29... g4 {[%clk 0:01:30.3]} 30. Qxe4 {[%clk 0:00:33.9]} 30... dxe4 {[%clk
0:01:30.7]} 31. Nh4 {[%clk 0:00:33.8]} 31... e3 {[%clk 0:01:30.8]} 32. fxe3
{[%clk 0:00:28.5]} 32... Rxe3 {[%clk 0:01:29.9]} 33. Rc2 {[%clk 0:00:11.6]}
33... Rxb3 {[%clk 0:01:27]} 34. d5 {[%clk 0:00:12.2]} 34... Ne5 {[%clk
0:01:24.6]} 35. Bxe5 {[%clk 0:00:11.2]} 35... fxe5 {[%clk 0:01:25.5]} 36. Re2
{[%clk 0:00:09.5]} 36... Bc5 {[%clk 0:01:18.9]} 37. Rxe5 {[%clk 0:00:07.1]}
37... Rb2+ {[%clk 0:01:18.6]} 38. Kf1 {[%clk 0:00:07.5]} 38... Rxh2 {[%clk
0:01:17.9]} 39. Rh5 {[%clk 0:00:07.4]} 39... Kf6 {[%clk 0:01:15.7]} 40. Rxh7
{[%clk 0:00:05.8]} 40... b6 {[%clk 0:01:16.1]} 41. Rh6+ {[%clk 0:00:03.4]} 41...
Kf7 {[%clk 0:01:11.1]} 42. Rh7+ {[%clk 0:00:03.6]} 42... Kf6 {[%clk 0:01:05.2]}
43. Ra7 {[%clk 0:00:04.5]} 43... a5 {[%clk 0:01:04.1]} 44. Ra8 {[%clk
0:00:05.1]} 44... Rf2+ {[%clk 0:01:02.1]} 45. Ke1 {[%clk 0:00:05.2]} 45... Rc2
{[%clk 0:01:02.3]} 46. Ra6 {[%clk 0:00:02.6]} 46... Rxc4 {[%clk 0:00:55.5]} 47.
d6 {[%clk 0:00:03.2]} 47... Rd4 {[%clk 0:00:54]} 48. Ra8 {[%clk 0:00:02.1]}
48... Rxd6 {[%clk 0:00:52.8]} 49. Ke2 {[%clk 0:00:03]} 49... Ke5 {[%clk
0:00:52]} 50. Re8+ {[%clk 0:00:01.6]} 50... Re6 {[%clk 0:00:50.4]} 51. Ra8
{[%clk 0:00:02.5]} 51... Kd4+ {[%clk 0:00:49.7]} 52. Kd2 {[%clk 0:00:03.1]}
52... Ke4 {[%clk 0:00:48.3]} 53. Rg8 {[%clk 0:00:02]} 53... Rd6+ {[%clk
0:00:36.6]} 54. Kc2 {[%clk 0:00:02.1]} 54... Ke3 {[%clk 0:00:34.4]} 55. Rxg4
{[%clk 0:00:03]} 55... Kf2 {[%clk 0:00:34.5]} 56. Rf4+ {[%clk 0:00:03.1]} 56...
Kxg3 {[%clk 0:00:34]} 57. Ra4 {[%clk 0:00:03.8]} 57... Rf6 {[%clk 0:00:31.8]}
58. Rc4 {[%clk 0:00:02.4]} 58... Kh3 {[%clk 0:00:23.8]} 59. Kb1 {[%clk
0:00:02.2]} 59... Bf2 {[%clk 0:00:20.8]} 60. Rc3+ {[%clk 0:00:01]} 60... Kxh4
{[%clk 0:00:20]} 61. Rc2 {[%clk 0:00:01.6]} 61... Bc5 {[%clk 0:00:19.8]} 62. Ka2
{[%clk 0:00:02]} 62... Rf4 {[%clk 0:00:20]} 63. Rc3 {[%clk 0:00:01.4]} 63... a4
{[%clk 0:00:20.3]} 64. Rd3 {[%clk 0:00:01.6]} 64... Rf2+ {[%clk 0:00:20.4]} 65.
Kb1 {[%clk 0:00:01.6]} 65... a3 {[%clk 0:00:20.7]} 66. Rb3 {[%clk 0:00:01.9]}
66... a2+ {[%clk 0:00:20.8]} 67. Ka1 {[%clk 0:00:01.9]} 67... Bd4+ {[%clk
0:00:21.2]} 68. Rb2 {[%clk 0:00:02.3]} 68... Bxb2+ {[%clk 0:00:20.7]} 69. Kxa2
{[%clk 0:00:02.6]} 69... Bd4+ {[%clk 0:00:21.4]} 0-1